fUSD/lending_fUSD_20240709
["ID","MTS","AMOUNT","RATE_DAILY","PERIOD"]
[331587617,1720561833713,-619.0,0.000139,2]
[331587618,1720561833723,-809.0,0.000139,2]
[331587619,1720561833732,-1623.394,0.000139,2]
[331587620,1720561833741,-283.0,0.000139,2]
[331587621,1720561833751,-3250.0,0.000139,2]
[331587622,1720561833761,-320.58251651,0.000139,2]
[331587623,1720561833771,-5179.0,0.000139,2]
[331587624,1720561833781,-5813.0,0.000139,2]
[331587625,1720561833793,-1199.0,0.000139,2]
[331587626,1720561833804,-38257.0,0.000139,2]
[331587627,1720561833813,-1665.0,0.000139,2]
[331587628,1720561833823,-150.0,0.00013906,2]
[331587629,1720561833834,-150.0,0.0001391,2]
[331587630,1720561833844,-150.0,0.00013916,2]
[331587631,1720561833853,-150.0,0.00013918,2]
[331587632,1720561833863,-509.13242177,0.00013926,2]
[331587633,1720561833872,-150.0,0.00013937,2]
[331587634,1720561833882,-150.0,0.0001395,2]
[331587635,1720561833891,-150.0,0.00013958,2]
[331587636,1720561833900,-150.0,0.00013966,2]
[331587637,1720561833910,-160.0,0.00013974,2]
[331587638,1720561833920,-160.0,0.00013982,2]
[331587639,1720561833931,-160.0,0.00013991,2]
[331587640,1720561833941,-4319.8524531,0.00013996,2]
[331587641,1720561834332,-12014.1645042,0.00013996,2]
[331587642,1720561834344,-300.0,0.00013999,2]
[331587643,1720561834354,-300.0,0.00013999,2]
[331587644,1720561834364,-530.0,0.00014,2]
[331587645,1720561834374,-688965.52313927,0.00014,2]
[331587646,1720561835546,-882.33461522,0.00014,2]
[331587647,1720561835559,-735.06296937,0.00014,2]
[331587648,1720561835571,-514476.15955816,0.00014,2]
[331587686,1720561837903,-1011.53545459,0.00014,2]
[331587687,1720561837915,-456.60486029,0.00014,2]
[331587688,1720561837926,-5680.0,0.00014,2]
[331587689,1720561838080,-622.41987829,0.00014,2]
[331587690,1720561838092,-264.22385522,0.00014,2]
[331587691,1720561838104,-6678.04667283,0.00014,2]
[331587752,1720561839883,-1071.0,0.000139,2]
[331587753,1720561839893,-345.590175,0.00014,2]
[331587754,1720561839904,-1146.80056203,0.00014,2]
[331587755,1720561839916,-288.40183904,0.00014,2]
[331587756,1720561839927,-1514.40300299,0.00014,2]
[331587757,1720561839939,-1314.20919046,0.00014,2]
[331587758,1720561840046,-10627.97532092,0.00014,2]
[331587791,1720561844521,-252.99891992,0.00014,2]
[331587792,1720561844533,-6544.06715898,0.00014,2]
[331587793,1720561844545,-9114.21340445,0.00014,2]
[331587794,1720561844556,-565.99524606,0.00014,2]
[331587795,1720561844569,-5991.99303999,0.00014,2]
[331587812,1720561847258,-303.95,0.00013746,2]
[331587813,1720561847268,-2296.85395826,0.00014,2]
[331587814,1720561847279,-1624.56825,0.00014,2]
[331587815,1720562235982,163.59,0.0001031,2]
[331587816,1720562258294,537.68,0.00010981,2]
[331587817,1720562569971,592.55102992,0.00011199,2]
[331587818,1720562621730,206.26827404,0.00011199,2]
[331587819,1720562639994,1903.65279599,0.00011199,2]
[331587820,1720562644142,296.92053615,0.00011199,2]
[331587821,1720562673262,4802.90469614,0.00011199,2]
[331587822,1720562710566,-359.06627926,0.00012302,2]
[331587823,1720562710590,-908.0496453,0.00012559,2]
[331587824,1720562710614,-800.0,0.0001266,2]
[331587825,1720562710639,-300.0,0.00012695,2]
[331587826,1720562710663,-9609.88,0.00012696,2]
[331587827,1720562710685,-818.18,0.00012787,2]
[331587828,1720562710710,-150.0,0.00012791,2]
[331587829,1720562710735,-250.0,0.0001284,2]
[331587830,1720562710758,-6377.29,0.00012857,2]
[331587831,1720562710782,-2058.16,0.00012857,2]
[331587832,1720562710805,-250.0,0.00012895,2]
[331587833,1720562710828,-876.21,0.00012895,2]
[331587834,1720562710852,-200.0,0.00013014,2]
[331587835,1720562710875,-2536.93,0.00013014,2]
[331587836,1720562710897,-320.84,0.00013014,2]
[331587837,1720562710921,-160.32,0.00013095,2]
[331587838,1720562710944,-2786.47,0.00013095,2]
[331587839,1720562710968,-537.68,0.00013245,2]
[331587840,1720562710990,-791.559191,0.00013315,2]
[331587841,1720562711013,-1400.10439918,0.00013392,2]
[331587842,1720562711035,-300.0,0.00013456,2]
[331587843,1720562711058,-791.559191,0.00013481,2]
[331587844,1720562711081,-235.68358109,0.00013516,2]
[331587845,1720562711104,-34892.571,0.0001362,2]
[331587846,1720562711127,-791.559191,0.00013647,2]
[331587847,1720562711152,-150.0,0.00013739,2]
[331587848,1720562711177,-150.0,0.00013757,2]
[331587849,1720562711200,-1000.0,0.00013799,2]
[331587850,1720562711223,-52524.3302,0.000138,2]
[331587851,1720562711245,-1000.0,0.000138,2]
[331587852,1720562711268,-791.559191,0.00013814,2]
[331587853,1720562712983,453.15868833,0.00013543,2]
[331587854,1720562713705,408.171,0.0001362,2]
[331587855,1720562716443,1552.017,0.0001362,2]
[331587856,1720562734607,-499.99,0.00013836,2]
[331587857,1720562734632,-308.48390406,0.00013849,2]
[331587858,1720562734656,-5299.0,0.0001386,2]
[331587859,1720562734678,-1071.0,0.00013881,2]
[331587860,1720562734703,-895.9,0.00013886,3]
[331587861,1720562734727,-500.0,0.00013887,2]
[331587862,1720562734755,-150.0,0.00013887,2]
[331587863,1720562734778,-736.05203984,0.00013887,2]
[331587864,1720562734801,-999.99,0.00013888,2]
[331587865,1720562734824,-500.0,0.00013888,2]
[331587866,1720562734848,-500.0,0.00013888,2]
[331587867,1720562734878,-48482.5511,0.00013896,2]
[331587868,1720562734903,-574.18743623,0.00013899,2]
[331587869,1720562734930,-1630.54716978,0.00013899,2]
[331587870,1720562734955,-177.35209679,0.000139,2]
[331587871,1720562734979,-500.0,0.000139,2]
[331587872,1720562735003,-176.59021447,0.000139,2]
[331587873,1720562735026,-152.54482884,0.000139,2]
[331587874,1720562735051,-5179.0,0.000139,2]
[331587875,1720562735073,-359.939,0.000139,2]
[331587876,1720562735096,-1659.0,0.000139,2]
[331587877,1720562735118,-1830.0,0.000139,2]
[331587878,1720562735140,-5813.0,0.000139,2]
[331587879,1720562735162,-1251.0,0.000139,2]
[331587880,1720562735184,-7500.0,0.000139,2]
[331587881,1720562735205,-619.0,0.000139,2]
[331587882,1720562735227,-164.36347925,0.000139,2]
[331587883,1720562735250,-398.051,0.000139,2]
[331587884,1720562735271,-449.0,0.000139,2]
[331587885,1720562735294,-809.0,0.000139,2]
[331587886,1720562735953,-283.0,0.000139,2]
[331587887,1720562735987,-414.741,0.000139,2]
[331587888,1720562736009,-319.79581654,0.000139,2]
[331587889,1720562736033,-150.0,0.00013904,2]
[331587890,1720562736057,-150.0,0.00013906,2]
[331587891,1720562736080,-150.0,0.00013926,2]
[331587892,1720562736103,-420.0,0.00013926,2]
[331587893,1720562736126,-791.559191,0.0001398,2]
[331587894,1720562736148,-160.0,0.00013982,2]
[331587895,1720562736174,-2250.57401128,0.0001399,2]
[331587896,1720562736196,-160.0,0.00013991,2]
[331587897,1720562736218,-448.4277847,0.00013992,2]
[331587898,1720562736241,-1214.0029349,0.00013992,2]
[331587899,1720562736264,-2944.8025502,0.00013992,2]
[331587900,1720562736288,-56520.4008831,0.00013998,2]
[331587901,1720562736311,-265.26476575,0.00013999,2]
[331587902,1720562736333,-578.91911639,0.00013999,2]
[331587903,1720562736356,-300.0,0.00013999,2]
[331587904,1720562736381,-181.04966505,0.00013999,2]
[331587905,1720562736404,-7494.96889435,0.00013999,2]
[331587906,1720562736430,-524.0,0.00014,2]
[331587907,1720562736458,-85967.60256032,0.00014,2]
[331587928,1720563033090,-483.91,0.00011717,2]
[331587929,1720563033100,-150.0,0.000126,2]
[331587930,1720563033110,-250.0,0.00013227,2]
[331587931,1720563033120,-141.42320867,0.00013315,2]
[331587932,1720563033133,-1187.22772233,0.00013315,2]
[331587933,1720563033142,-1328.650931,0.00013481,2]
[331587934,1720563033152,-1328.650931,0.00013647,2]
[331587935,1720563033162,-1328.650931,0.00013814,2]
[331587936,1720563033171,-357.33671585,0.0001386,2]
[331587937,1720563033183,-874.50981415,0.0001386,2]
[331587938,1720563033193,-319.79581652,0.000139,2]
[331587939,1720563033202,-400.0,0.0001397,2]
[331587940,1720563033212,-300.0,0.0001397,2]
[331587941,1720563033221,-602.285215,0.00013973,2]
[331587942,1720563033232,-300.0,0.00013979,2]
[331587943,1720563033242,-1328.650931,0.0001398,2]
[331587944,1720563033251,-483.91,0.00013981,2]
[331587945,1720563033261,-356.11012796,0.00013989,2]
[331587946,1720563033270,-1011.6691124,0.00013998,2]
[331587947,1720563033280,-9759.1718363,0.00013998,2]
[331587948,1720563033290,-4014.04520583,0.00013998,2]
[331587949,1720563033303,-5151.0,0.00013998,2]
[331587950,1720563033316,-447.64794776,0.00013998,2]
[331587951,1720563033329,-11640.01424638,0.00013998,2]
[331587952,1720563033341,-21488.76960359,0.00013998,2]
[331587954,1720563037977,-446.9083603,0.000139,2]
[331587955,1720563037989,-328.0216397,0.000139,2]
[331587956,1720563038000,-302.2983603,0.00013998,2]
[331587957,1720563038039,-1242.69192714,0.00013998,2]
[331587958,1720563038052,-1459.1809153,0.00013998,2]
[331587959,1720563038063,-227.27128939,0.00013999,2]
[331587960,1720563038074,-25195.2290016,0.00014,2]
[331587961,1720563038087,-743.53478048,0.00014,2]
[331587962,1720563038099,-4373.27347598,0.00014,2]
[331587963,1720563038112,-753.50015,0.00014,2]
[331587964,1720563038126,-848.0539695,0.00014,2]
[331587965,1720563038212,-2975.5,0.00014,2]
[331587966,1720563038274,-25237.46888027,0.00014,2]
[331587967,1720563038287,-1194.65517,0.00014,2]
[331587968,1720563038300,-1001.47012524,0.00014,2]
[331587969,1720563038313,-1085.8962,0.00014,2]
[331588065,1720563040051,-703.06776478,0.00014,2]
[331588066,1720563040064,-8941.58952079,0.00014,2]
[331588067,1720563040076,-259.26760035,0.00014,2]
[331588068,1720563042094,-258838.83320447,0.00014,2]
[331588069,1720563042244,-5646.57884,0.00014,2]
[331588070,1720563042288,-168775.3581515,0.00014,2]
[331588079,1720563044792,-412.1753019,0.000139,2]
[331588080,1720563044804,-382.32091277,0.000139,2]
[331588081,1720563044814,-45.97821803,0.00014,2]
[331588085,1720563046130,-365.43797816,0.00014,2]
[331588086,1720563046287,-613.82,0.00014,2]
[331588087,1720563046299,-3189.228,0.00014,2]
[331588088,1720563046310,-811.58463484,0.00014,2]
[331588089,1720563046322,-488.89009445,0.00014,2]
[331588105,1720563487180,1265.01058332,0.00011199,2]
[331588110,1720563889201,363.75372231,0.00011199,2]
[331588127,1720563989198,17249.14682295,0.00011199,2]
[331588130,1720564009478,4343.5066292,0.00011199,2]
[331588143,1720564087143,19432.74733759,0.00011199,2]
[331588145,1720564098911,155.0,0.00011199,2]
[331588147,1720564118991,691.4650798,0.00011199,2]
[331588156,1720564234623,-498.88,0.00011384,2]
[331588157,1720564234632,-450.24027991,0.00012273,2]
[331588158,1720564234643,-434.93719891,0.00012302,2]
[331588159,1720564234652,-300.0,0.0001304,2]
[331588160,1720564234662,-1115.93252118,0.00013041,2]
[331588180,1720564238291,-7254.14233251,0.00013041,2]
[331588181,1720564238338,-504.3514221,0.00013041,2]
[331588348,1720564240246,-616.66372421,0.00013041,2]
[331588350,1720564240257,-250.0,0.00013123,2]
[331588352,1720564240267,-276.15184313,0.00013128,2]
[331588354,1720564240278,-156.85639004,0.00013128,2]
[331588356,1720564240288,-310.0,0.00013128,2]
[331588358,1720564240299,-308.48390406,0.00013128,2]
[331588360,1720564240309,-413.27406791,0.00013128,2]
[331588362,1720564240319,-160.32,0.00013243,2]
[331588365,1720564240329,-155.5464279,0.00013472,2]
[331588367,1720564240338,-155.0,0.00013516,2]
[331588369,1720564240348,-684.90615013,0.00013543,2]
[331588370,1720564240357,-688.3688558,0.00013543,2]
[331588373,1720564240368,-1000.0,0.00013635,2]
[331588375,1720564240378,-498.88,0.00013647,2]
[331588376,1720564240387,-166.17,0.00013676,2]
[331588378,1720564240397,-5665.62205694,0.00013676,2]
[331588381,1720564240415,-1876.52794306,0.00013676,2]
[331588383,1720564240424,-1344.63,0.000137,2]
[331588385,1720564240434,-1026.53878,0.0001386,2]
[331588387,1720564240444,-500.0,0.00013888,2]
[331588389,1720564240454,-177.35209678,0.000139,2]
[331588391,1720564240466,-319.79581652,0.000139,2]
[331588393,1720564240475,-695.18418781,0.000139,2]
[331588395,1720564240485,-282.49092516,0.000139,2]
[331588397,1720564240495,-30672.0,0.00013997,2]
[331588399,1720564240505,-421.5287968,0.00013998,2]
[331588401,1720564240516,-529.3847144,0.00013998,2]
[331588403,1720564240526,-31237.7495404,0.00013998,2]
[331588405,1720564240536,-421.5287968,0.00013998,2]
[331588407,1720564240546,-1607.60830694,0.00013999,2]
[331588409,1720564240557,-227.27128939,0.00013999,2]
[331588411,1720564240567,-121613.89926627,0.00014,2]
[331588412,1720564240586,-235.5905723,0.00013516,2]
[331588413,1720564240596,-299115.59934372,0.00014,2]
[331588414,1720564240609,-24166.92499929,0.00014,2]
[331588416,1720564240627,-736.10038563,0.00014,2]
[331588418,1720564240644,-1182.3902614,0.00014,2]
[331588420,1720564240657,-17280.51154448,0.00014,2]
[331588423,1720564240675,-1139.11643078,0.00014,2]
[331588425,1720564240687,-364.58602246,0.00014,2]
[331588428,1720564240698,-523.5974776,0.00014,2]
[331588447,1720564240870,-3108.12795836,0.00014,2]
[331588703,1720564243357,-2378.5307728,0.00014,2]
[331588885,1720564246474,-274.66733609,0.00012975,2]
[331588886,1720564246485,-160.99486091,0.00012975,2]
[331588887,1720564246494,-578.91911639,0.00013999,2]
[331588888,1720564246503,-1830.50495538,0.00014,2]
[331588889,1720564246515,-3203.82419368,0.00014,2]
[331588890,1720564246529,-487.94323696,0.00014,2]
[331588891,1720564246798,-1188.35,0.00014,2]
[331588892,1720564246809,-380.37468551,0.00014,2]
[331588899,1720564828159,151.071006,0.00025,71]
[331588900,1720564833162,151.071006,0.00025,72]
[331588901,1720564835732,151.071006,0.00025,73]
[331588902,1720564846118,151.071007,0.00025,74]
[331588903,1720564852714,151.071007,0.00025,60]
[331588904,1720564857275,151.071007,0.00025,64]
[331588905,1720564860775,151.071007,0.00025,65]
[331588906,1720564863901,151.071007,0.00025,66]
[331588908,1720564874377,151.071007,0.00025,67]
[331588910,1720564884386,151.071007,0.00025,71]
[331588914,1720565038608,155.0,0.00011199,2]
[331588915,1720565218542,155.0,0.00011199,2]
[331588926,1720565433512,-270.03107511,0.00011245,2]
[331588927,1720565433524,-221.18892489,0.00011245,2]
[331588928,1720565433533,-432.86708779,0.00012314,2]
[331588929,1720565433542,-263.88036351,0.00012314,2]
[331588930,1720565433553,-876.66018865,0.0001251,2]
[331588931,1720565433564,-250.0,0.00013101,2]
[331588932,1720565433575,-4461.53872289,0.00013128,2]
[331588933,1720565433585,-347.47664097,0.00013128,2]
[331588934,1720565433595,-196.39295394,0.00013128,2]
[331588935,1720565433604,-155.0,0.00013128,2]
[331588936,1720565433614,-235.21210657,0.00013128,2]
[331588937,1720565433623,-242.09159978,0.00013128,2]
[331588938,1720565433633,-300.0,0.00013471,2]
[331588939,1720565433642,-155.0,0.00013472,2]
[331588940,1720565433651,-155.0,0.00013472,2]
[331588941,1720565433661,-176.62,0.00013501,2]
[331588942,1720565433671,-491.22,0.00013509,2]
[331588943,1720565433680,-366.01868755,0.00013543,2]
[331588944,1720565433689,-155.15673407,0.00013543,2]
[331588945,1720565433699,-1000.0,0.00013761,2]
[331588946,1720565433708,-299.99,0.00013761,2]
[331588947,1720565433718,-500.0,0.00013888,2]
[331588948,1720565433727,-586.44,0.000139,2]
[331588949,1720565433737,-7342.4618,0.000139,2]
[331588950,1720565433746,-892.95320185,0.000139,2]
[331588951,1720565433758,-766.04679815,0.000139,2]
[331588952,1720565433767,-1251.0,0.000139,2]
[331588953,1720565433777,-1830.0,0.000139,2]
[331588954,1720565433786,-449.0,0.000139,2]
[331588955,1720565433796,-728.247,0.000139,2]
[331588956,1720565433806,-619.0,0.000139,2]
[331588957,1720565433816,-155.02805161,0.000139,2]
[331588958,1720565433826,-627.43022424,0.000139,2]
[331588959,1720565433836,-1867.616,0.000139,2]
[331588960,1720565433846,-211.0,0.000139,2]
[331588961,1720565433856,-1071.0,0.000139,2]
[331588962,1720565433866,-150.0,0.000139,2]
[331588963,1720565433875,-150.0,0.000139,2]
[331588964,1720565433885,-150.0,0.00013918,2]
[331588965,1720565433894,-500.0,0.00013947,2]
[331588966,1720565433904,-500.0,0.00013956,2]
[331588967,1720565433914,-500.0,0.00013965,2]
[331588968,1720565433923,-500.0,0.00013974,2]
[331588969,1720565433932,-500.0,0.00013982,2]
[331588970,1720565433943,-500.0,0.00013991,2]
[331588971,1720565433952,-16000.0,0.00013991,2]
[331588972,1720565433961,-970.538643,0.00013998,2]
[331588973,1720565433971,-28007.1009761,0.00013998,2]
[331588974,1720565433982,-702.5479947,0.00013998,2]
[331588975,1720565433992,-289.4595582,0.00013999,2]
[331588976,1720565434002,-308.48390406,0.00013999,2]
[331588977,1720565434015,-533.0,0.00014,2]
[331588978,1720565434024,-10534.55755552,0.00014,2]
[331588979,1720565434038,-102131.73839764,0.00014,2]
[331588980,1720565434052,-9299.18366164,0.00014,2]
[331588991,1720565438473,-11095.6671,0.000139,2]
[331588992,1720565438484,-8592.86886414,0.00014,2]
[331588993,1720565438546,-1567.583997,0.00014,2]
[331588994,1720565438637,-28462.08544533,0.00014,2]
[331588995,1720565438714,-2970.4,0.00014,2]
[331589151,1720565440404,-219.52211462,0.000139,2]
[331589153,1720565440415,-237.86300377,0.00013999,2]
[331589163,1720565440500,-51.59655442,0.00013999,2]
[331589165,1720565440510,-11560.30776854,0.00014,2]
[331589168,1720565440521,-586.44,0.00014,2]
[331589177,1720565440606,-1437.52043256,0.00014,2]
[331589179,1720565440618,-100499.0620144,0.00014,2]
[331589190,1720565440709,-5894.36956409,0.00014,2]
[331589380,1720565443495,-13501.70307668,0.00014,2]
[331589389,1720565446044,-701.11,0.00014,2]
[331589390,1720565446078,-155.0,0.00013574,2]
[331589391,1720565446087,-3242.93999999,0.00014,2]
[331589392,1720565446098,-1858.3075,0.00014,2]
[331589395,1720565447789,-189.23515969,0.00012273,2]
[331589396,1720565447799,-715.29793824,0.00014,2]
[331589397,1720565448106,-557.16551076,0.00013206,2]
[331589398,1720565448116,-9897.30672754,0.00014,2]
[331589399,1720565557073,486.56,0.00011145,2]
[331589400,1720565598254,202.655186,0.00025163,120]
[331589402,1720565834868,157.5073195,0.00011199,2]
[331589403,1720565931102,1763.97704749,0.00011199,2]
[331589404,1720566130577,686.97610032,0.00011199,2]
[331589405,1720566256992,520.84431968,0.00011199,2]
[331589406,1720566319959,173.80868065,0.00011199,2]
[331589407,1720566327401,243.57159997,0.00011199,2]
[331589408,1720566337238,171.05,0.00010286,2]
[331589409,1720566352391,483.35,0.00010982,2]
[331589410,1720566371164,206.31631327,0.00011199,2]
[331589411,1720566468077,162.33447912,0.00011199,2]
[331589412,1720566624964,280.13309514,0.00011199,2]
[331589418,1720566631675,-292.0253584,0.00012214,2]
[331589419,1720566631684,-159.22626939,0.00012314,2]
[331589420,1720566631695,-250.0,0.00012834,2]
[331589421,1720566631704,-176.62,0.00012842,2]
[331589422,1720566631713,-1000.0,0.00012898,2]
[331589423,1720566631723,-319.21,0.00012902,2]
[331589424,1720566631732,-5000.0,0.00013128,2]
[331589425,1720566631741,-771.95,0.00013128,2]
[331589426,1720566631751,-239.96844221,0.00013246,2]
[331589427,1720566631764,-243.38155779,0.00013246,2]
[331589428,1720566631774,-84.016496,0.000133,2]
[331589429,1720566631786,-340.643504,0.000133,2]
[331589430,1720566631795,-152.69,0.00013312,2]
[331589431,1720566631805,-311.10201589,0.00013315,2]
[331589432,1720566631817,-65.88250511,0.00013315,2]
[331589433,1720566631827,-434.11749489,0.00013315,2]
[331589434,1720566631844,-256.269,0.00013315,2]
[331589435,1720566631894,-520.64121083,0.00013315,2]
[331589437,1720566637699,-2334.23103128,0.00013315,2]
[331589438,1720566637708,-1083.392292,0.00013315,2]
[331589439,1720566637717,-257.886499,0.00013315,2]
[331589440,1720566637727,-178.031542,0.00013315,2]
[331589441,1720566637736,-215.097337,0.00013315,2]
[331589442,1720566637746,-173.698331,0.00013315,2]
[331589443,1720566637755,-159.036369,0.00013315,2]
[331589444,1720566637766,-376.984521,0.00013481,2]
[331589445,1720566637776,-3545.258737,0.00013481,2]
[331589446,1720566637786,-1083.392292,0.00013481,2]
[331589447,1720566637796,-257.886499,0.00013481,2]
[331589448,1720566637805,-178.031542,0.00013481,2]
[331589449,1720566637815,-173.698331,0.00013537,2]
[331589450,1720566637825,-159.036369,0.00013537,2]
[331589451,1720566637835,-1265.01058332,0.00013574,2]
[331589452,1720566637845,-376.984521,0.00013647,2]
[331589453,1720566637855,-1083.392292,0.00013647,2]
[331589454,1720566637864,-257.886499,0.00013647,2]
[331589455,1720566637874,-178.031542,0.00013647,2]
[331589456,1720566637883,-3545.258737,0.00013647,2]
[331589457,1720566637893,-150.0,0.00013725,2]
[331589458,1720566637903,-173.698331,0.00013758,2]
[331589459,1720566637912,-159.036369,0.00013758,2]
[331589460,1720566637922,-991.42457147,0.0001376,2]
[331589461,1720566637932,-376.984521,0.00013814,2]
[331589463,1720566637943,-1083.392292,0.00013814,2]
[331589465,1720566637953,-178.031542,0.00013814,2]
[331589467,1720566637963,-257.886499,0.00013814,2]
[331589469,1720566637973,-3545.258737,0.00013814,2]
[331589471,1720566637982,-6505.42187387,0.0001385,2]
[331589473,1720566637998,-3329.06833246,0.0001385,2]
[331589475,1720566638008,-6517.45506866,0.0001386,2]
[331589478,1720566638019,-19673.28984762,0.0001386,2]
[331589543,1720566639764,-658.39,0.0001386,2]
[331589544,1720566639775,-490.39151482,0.0001386,2]
[331589629,1720566641206,-13569.06982482,0.0001386,2]
[331589630,1720566641217,-855.44899,0.0001388,2]
[331589631,1720566641228,-279.78646632,0.00013888,2]
[331589641,1720566643127,-220.21353368,0.00013888,2]
[331589642,1720566643140,-261.62068072,0.0001389,3]
[331589643,1720566643154,-11.62931928,0.0001389,3]
[331589644,1720566643164,-7719.15030239,0.000139,2]
[331589645,1720566644187,-325.21435768,0.000139,2]
[331589646,1720566644256,-856.72563993,0.000139,2]
[331589647,1720566644267,-14630.0016,0.000139,2]
[331589648,1720566644277,-525.14764925,0.000139,2]
[331589649,1720566644290,-23.85379696,0.000139,2]
[331589650,1720566644300,-615.0,0.000139,2]
[331589651,1720566644310,-320.87491302,0.000139,2]
[331589652,1720566644321,-991.42457148,0.000139,2]
[331589653,1720566644331,-500.0,0.00013947,2]
[331589654,1720566644340,-150.0,0.0001395,2]
[331589655,1720566644350,-150.0,0.0001395,2]
[331589656,1720566644361,-500.0,0.00013956,2]
[331589657,1720566644371,-855.44898,0.0001396,2]
[331589658,1720566644381,-500.0,0.00013965,2]
[331589659,1720566644391,-385.85878321,0.00013966,2]
[331589660,1720566644401,-322.04313409,0.00013974,2]
[331589661,1720566644414,-177.95686591,0.00013974,2]
[331589662,1720566644423,-376.984521,0.0001398,2]
[331589663,1720566644433,-614.05861309,0.0001398,2]
[331589679,1720566646873,-469.33367891,0.0001398,2]
[331589681,1720566646883,-257.886499,0.0001398,2]
[331589683,1720566646893,-178.031542,0.0001398,2]
[331589685,1720566646903,-45.05523176,0.0001398,2]
[331589690,1720566646957,-1592.51588198,0.0001398,2]
[331589693,1720566646971,-1907.68762326,0.0001398,2]
[331589695,1720566646981,-173.698331,0.0001398,2]
[331589697,1720566646991,-159.036369,0.0001398,2]
[331589699,1720566647001,-500.0,0.00013982,2]
[331589701,1720566647011,-308.48390406,0.00013989,2]
[331589703,1720566647021,-500.0,0.00013991,2]
[331589705,1720566647031,-585.4566623,0.00013998,2]
[331589707,1720566647041,-3040.41542176,0.00014,2]
[331589709,1720566647056,-433.65296301,0.00014,2]
[331589716,1720566647158,-422.91126348,0.00014,2]
[331589738,1720567260048,10856.6730051,0.00011199,2]
[331589739,1720567405827,2815.0532399,0.00011199,2]
[331589740,1720567762189,-377.62270506,0.00011203,2]
[331589741,1720567833017,-77.35729494,0.00011203,2]
[331589742,1720567833027,-207.94886604,0.00012964,2]
[331589743,1720567833038,-42.05113396,0.00012964,2]
[331589744,1720567833047,-494.40479543,0.00013054,2]
[331589745,1720567837968,-7599.06520457,0.00013054,2]
[331589746,1720567837978,-800.0,0.00013102,2]
[331589747,1720567837987,-160.23213127,0.00013111,2]
[331589876,1720567839940,-365.3935769,0.00013111,2]
[331589877,1720567839952,-593.15419183,0.00013111,2]
[331589878,1720567839963,-42.33064068,0.00013128,2]
[331589879,1720567840049,-3698.49104601,0.00013128,2]
[331589881,1720567840334,-1259.17831331,0.00013128,2]
[331589882,1720567840345,-152.69,0.00013207,2]
[331589884,1720567840355,-564.77403987,0.00013211,2]
[331589887,1720567840369,-70.71079264,0.00013211,2]
[331589889,1720567840380,-182.773977,0.00013315,2]
[331589891,1720567840391,-454.98,0.00013467,2]
[331589893,1720567840402,-200.0,0.00013694,2]
[331589895,1720567840413,-500.0,0.00013887,2]
[331589897,1720567840422,-500.0,0.00013888,2]
[331589899,1720567840433,-480.37626546,0.000139,2]
[331589901,1720567840443,-68.16675758,0.00013926,2]
[331589903,1720567840455,-81.83324242,0.00013926,2]
[331589905,1720567840465,-1057.46,0.00013926,2]
[331589907,1720567840475,-150.0,0.00013926,2]
[331589909,1720567840486,-500.0,0.00013938,2]
[331589911,1720567840497,-500.0,0.00013947,2]
[331589913,1720567840507,-500.0,0.00013956,2]
[331589915,1720567840517,-500.0,0.00013965,2]
[331589917,1720567840526,-500.0,0.00013974,2]
[331589919,1720567840537,-500.0,0.00013982,2]
[331589921,1720567840547,-500.0,0.00013991,2]
[331589923,1720567840557,-1178.21589412,0.00013992,2]
[331589946,1720567844553,-14886.63927411,0.00013992,2]
[331589947,1720567844571,-2909.1567,0.00013992,2]